[Event "Kezmarok Chess Open 2022"]
[Site "Kezmarok"]
[Date "2022.09.29"]
[Round "7.1"]
[White "Bazakutsa, Svyatoslav"]
[Black "Dubessay, Bastien"]
[Result "1/2-1/2"]
[ECO "A20"]
[WhiteElo "2182"]
[BlackElo "2259"]
[Annotator "TA"]
[PlyCount "201"]
[EventDate "2022.09.24"]
[EventType "swiss"]
[EventCountry "SVK"]
[SourceTitle "playchess.com"]
[Source "ChessBase"]
[SourceQuality "1"]
[TimeControl "40/5400+30:1800+30"]

{[%evp 9,201,24,26,14,19,14,11,10,16,1,10,7,20,17,12,0,60,60,48,44,46,27,37,29,43,19,48,10,23,22,13,10,29,16,17,6,37,32,34,43,77,63,154,161,153,163,145,95,127,100,131,152,128,129,143,75,77,48,33,-64,0,-10,23,0,0,0,0,0,0,0,0,0,0,0,19,19,50,50,50,44,70,70,70,45,70,38,38,38,38,0,38,38,38,38,38,0,38,38,38,38,38,38,38,38,38,38,10,8,38,38,38,38,38,38,38,38,38,38,38,38,38,38,38,38,38,38,38,8,8,8,8,8,8,8,8,8,8,8,8,8,8,8,8,8,8,8,8,8,8,8,8,8,8,8,8,8,8,8,8,8,8,8,8,8,8,0,16,0,16,16,8,16,16,16,16,16,16,16,16,0,16,16,16,16,16,8,16,0,0,0,0,0,4,0]} 1. c4 {[%emt 0:00:09]} e5 {[%emt 0:00:14]} 2. g3 {[%emt 0:00:08]} c6 {[%emt 0:00:12]} 3. Nf3 {[%emt 0:00:06]} e4 {[%emt 0:00:25]} 4. Nd4 {[%emt 0:00:04][%cal Bf3d4,Bd4c2,Bc2e3][%mdl 32]} d5 {[%emt 0:00:08]} 5. cxd5 {[%emt 0:00:08]} Qxd5 {[%emt 0:00:34]} 6. Nc2 {[%emt 0:00:10] A20: English Opening: 1...e5.} Nf6 {[%emt 0:00:05]} 7. Nc3 {[%emt 0:00:09]} Qe5 {[%emt 0:00:07]} 8. Bg2 {[%emt 0:00:08]} Na6 {[%emt 0:00:15]} 9. O-O {[%emt 0:00:13]} (9. d4 {with more complications.} exd3 10. Qxd3 Nb4 11. Nxb4 Bxb4 12. Bf4) 9... Be7 {[%emt 0:00:14]} 10. Ne3 {[%emt 0:00:06]} O-O {[%emt 0:00:21]} 11. a3 {[%emt 0:00:09]} Re8 {[%emt 0:00:12]} 12. b4 {[%emt 0:00:09]} Ng4 {[%emt 0:00:11] [#]} (12... Bf8 $11) 13. Bxe4 $146 {[%emt 0:00:13]} ({Predecessor:} 13. Bb2 Qh5 14. h4 Bf6 15. Qc2 Nxe3 16. dxe3 Bf5 17. Na4 Bxb2 18. Nxb2 Nc7 19. Nc4 {0-1 (32) Ding,L (2806)-Nepomniachtchi,I (2766) Madrid 2022}) 13... Qh5 {[%emt 0:01:30][%csl Gg4][%cal Rh5h2]} 14. Nxg4 {[%emt 0:00:08]} Bxg4 {[%emt 0:00:04]} 15. Bg2 {[%emt 0:00:12][%cal Ob4b5]} Nc7 {[%emt 0:00:16] Prevents b5.} 16. f3 {[%emt 0:00:14]} Be6 {[%emt 0:02:04]} 17. Bb2 {[%emt 0:01:31]} Rad8 {[%emt 0:00:55]} 18. Qc2 {[%emt 0:00:54]} a5 $1 {[%emt 0:08:01]} 19. bxa5 {[%emt 0:04:38]} Qxa5 {[%emt 0:00:14]} 20. Kh1 {[%emt 0:03:31]} Na6 {[%emt 0:20:15][%cal Bc7a6,Ba6c5,Bc5b3][%mdl 32]} (20... Bf5 $5 {[%cal Rf5c2]} 21. d3 Qc5 $14) 21. d3 {[%emt 0:11:07]} Nc5 {[%emt 0:02:00]} 22. Ne4 {[%emt 0:01:12]} Nb3 {[%emt 0:13:34]} 23. Rab1 {[%emt 0:02:52]} f5 {[%emt 0:06:15]} 24. Bh3 {[%emt 0:11:14]} Bf7 {[%emt 0:07:33]} 25. Bc3 {[%emt 0:05:49]} Qxa3 {[%emt 0:05:51]} (25... Qd5 $14) 26. Bxf5 $16 {[%emt 0:01:22]} b5 {[%emt 0:00:10]} 27. Bb2 {[%emt 0:10:58]} Qa6 {[%emt 0:01:32] [#]} 28. e3 {[%emt 0:14:43] Prevents Nd4.} (28. Qc3 $6 Nd4 29. Bg4 (29. Ra1 Qb6 $11) 29... b4 $14) (28. Bxg7 $142 $1 {[%mdl 512] Threatens to win with Bf6.} Kxg7 29. Rxb3) 28... c5 {[%emt 0:03:56]} 29. Be5 {[%emt 0:02:08]} (29. Qc3 Qh6 $14) (29. Bxg7 Kxg7 30. Rxb3 Bxb3 31. Qc3+ (31. Qxb3 b4 $14) 31... Bf6 32. Qxb3 c4 33. dxc4 bxc4 $11) 29... c4 {[%emt 0:02:33]} 30. dxc4 {[%emt 0:03:47]} g6 {[%emt 0:02:47]} 31. Bh3 {[%emt 0:02:24]} ({Reject} 31. Rxb3 $6 gxf5 32. Ra1 (32. cxb5 Qe6 $17) (32. Rxb5 fxe4 33. Bb2 Bf6 $17) 32... Qe6 $11) (31. Qxb3 $6 Bxc4 32. Ra1 Bxb3 $11) 31... bxc4 {[%emt 0:00:31]} 32. Rfe1 {[%emt 0:07:06]} (32. Bb2 $142 Rd3 33. Rfd1) 32... Nc5 {[%emt 0:03:33]} 33. Nxc5 {[%emt 0:06:42] White is much more active.} (33. Bd4 $5 {[%cal Re4c5]} Qc6 34. Bg2 $16) 33... Bxc5 {[%emt 0:00:25]} 34. Bb2 {[%emt 0:00:20]} (34. f4 $14) 34... Qa5 {[%emt 0:10:49]} (34... Bb4 $15 35. Red1 Qa2 36. Rxd8 Rxd8) 35. Bf1 {[%emt 0:05:55]} Qd2 {[%emt 0:03:23]} 36. Re2 {[%emt 0:00:39]} Qxc2 {[%emt 0:02:03]} 37. Rxc2 {[%emt 0:00:01][%cal Be2c2,Bc2c4,Bc4a4,Ba4a1,Ba1e1][%mdl 32]} Bxe3 {[%emt 0:00:42]} 38. Bxc4 {[%emt 0:03:19]} Bxc4 {[%emt 0:00:20]} 39. Rxc4 {[%emt 0:00:02]} Rb8 {[%emt 0:00:29]} 40. Ra4 {[%emt 0:05:01]} Rb7 {[%emt 0:02:27] And now ...Bh6 would win.} (40... Bh6 $5 41. Raa1 $8 Rb3 $11) 41. Raa1 {[%emt 0:30:43]} Reb8 {[%emt 0:32:41]} 42. Re1 {[%emt 0:00:12]} Bd2 {[%emt 0:00:00]} 43. Be5 {[%emt 0:00:00]} Bxe1 {[%emt 0:00:00]} 44. Bxb8 {[%emt 0:00:00]} Rxb8 {[%emt 0:00:00]} 45. Rxe1 $14 {[%emt 0:00:00][%mdl 4096] Endgame KR-KR} Rb2 {[%emt 0:00:00]} 46. Re7 {[%emt 0:00:00]} Rf2 {[%emt 0:00:00]} 47. f4 {[%emt 0:00:00]} h5 {[%emt 0:00:00][%cal Oh5h4]} 48. Kg1 {[%emt 0:00:00]} Ra2 {[%emt 0:00:00][%cal Oh5h4]} 49. h3 {[%emt 0:00:00][%cal Bh2h3,Bh3h4][%mdl 32]} Rb2 {[%emt 0:00:00][%cal Oh5h4]} 50. h4 {[%emt 0:00:00]} Ra2 {[%emt 0:00:00]} 51. Kf1 {[%emt 0:00:00]} Rb2 {[%emt 0:00:00]} 52. Re2 {[%emt 0:00:00]} Rb1+ {[%emt 0:00:00]} 53. Kf2 {[%emt 0:00:00]} Kg7 {[%emt 0:00:00]} 54. Kf3 {[%emt 0:00:00]} Rf1+ {[%emt 0:00:00]} 55. Kg2 {[%emt 0:00:00]} Ra1 {[%emt 0:00:00]} 56. Re5 {[%emt 0:00:00]} Ra2+ {[%emt 0:00:00]} 57. Kf3 {[%emt 0:00:00]} Ra3+ {[%emt 0:00:00]} 58. Re3 {[%emt 0:00:00]} Ra1 {[%emt 0:00:00]} 59. Rd3 {[%emt 0:00:00]} Kf6 {[%emt 0:00:00]} 60. Rd6+ {[%emt 0:00:00]} Kg7 {[%emt 0:00:00]} 61. Rd5 {[%emt 0:00:00]} Ra3+ {[%emt 0:00:00]} 62. Kg2 {[%emt 0:00:00]} Ra2+ {[%emt 0:00:00]} 63. Kh3 {[%emt 0:00:00]} Rf2 {[%emt 0:00:00]} 64. Rg5 {[%emt 0:00:00]} Kh6 {[%emt 0:00:00]} 65. Ra5 {[%emt 0:00:00]} Kg7 {[%emt 0:00:00]} 66. Rb5 {[%emt 0:00:00]} Ra2 {[%emt 0:00:00]} 67. Rg5 {[%emt 0:00:00]} Kh6 {[%emt 0:00:00]} 68. f5 {[%emt 0:00:00]} gxf5 {[%emt 0:00:00] The position is equal.} 69. Rxf5 {[%emt 0:00:00]} Rb2 {[%emt 0:00:00]} 70. Rf6+ {[%emt 0:00:00]} Kg7 {[%emt 0:00:00]} 71. Rf1 {[%emt 0:00:00]} Kg6 {[%emt 0:00:00]} 72. Rh1 {[%emt 0:00:00]} Ra2 {[%emt 0:00:00]} 73. Rh2 {[%emt 0:00:00]} Ra3 {[%emt 0:00:00]} 74. Rf2 {[%emt 0:00:00]} Rb3 {[%emt 0:00:00]} 75. Kg2 {[%emt 0:00:00]} Ra3 {[%emt 0:00:00]} 76. Rd2 {[%emt 0:00:00]} Rb3 {[%emt 0:00:00]} 77. Rd6+ {[%emt 0:00:00]} Kg7 {[%emt 0:00:00]} 78. Re6 {[%emt 0:00:00]} Ra3 {[%emt 0:00:00]} 79. Kf2 {[%emt 0:00:00]} Ra1 {[%emt 0:00:00]} 80. Kf3 {[%emt 0:00:00]} Rf1+ {[%emt 0:00:00]} 81. Ke4 {[%emt 0:00:00]} Rg1 {[%emt 0:00:00]} 82. Kf4 {[%emt 0:00:00]} Kh7 {[%emt 0:00:59]} 83. Ra6 {[%emt 0:00:00]} Kg7 {[%emt 0:00:54]} 84. Rd6 {[%emt 0:00:00]} Kh7 {[%emt 0:00:08]} 85. Rd5 {[%emt 0:00:00]} Kh6 {[%emt 0:00:14]} 86. Rg5 {[%emt 0:00:00]} Rf1+ {[%emt 0:00:08]} 87. Ke5 {[%emt 0:00:00]} Rf3 {[%emt 0:01:36]} 88. Ke6 {[%emt 0:00:00]} Re3+ {[%emt 0:00:43]} 89. Kf5 {[%emt 0:00:00]} Rf3+ {[%emt 0:00:08]} 90. Ke4 {[%emt 0:00:00]} Ra3 {[%emt 0:01:02]} 91. Kf4 {[%emt 0:00:00]} Ra4+ {[%emt 0:00:20]} 92. Kf3 {[%emt 0:00:00]} Ra3+ {[%emt 0:00:07]} 93. Ke4 {[%emt 0:00:00]} Ra4+ {[%emt 0:00:10]} 94. Kd3 {[%emt 0:00:00]} Ra3+ {[%emt 0:00:04]} 95. Ke2 {[%emt 0:00:00]} Ra2+ {[%emt 0:00:08]} 96. Ke3 {[%emt 0:00:00]} Ra3+ {[%emt 0:00:03]} 97. Kd2 {[%emt 0:00:00]} Ra2+ {[%emt 0:00:03]} 98. Kc3 {[%emt 0:00:00]} Ra3+ {[%emt 0:00:05]} 99. Kd4 {[%emt 0:00:00]} Ra4+ {[%emt 0:00:06]} 100. Kd3 {[%emt 0:00:00]} Ra3+ {[%emt 0:00:08]} 101. Ke4 {[%emt 0:00:00] White really could win this.  Weighted Error Value: White=0.12 (very precise) /Black=0.13 (very precise)} 1/2-1/2

[Event "Kezmarok Chess Open 2022"]
[Site "Kezmarok"]
[Date "2022.09.29"]
[Round "7.2"]
[White "Mirowska, Oliwia"]
[Black "Berezjuk, Sergej"]
[Result "0-1"]
[ECO "A07"]
[WhiteElo "1856"]
[BlackElo "2382"]
[Annotator "TA"]
[PlyCount "98"]
[EventDate "2022.09.24"]
[EventType "swiss"]
[EventCountry "SVK"]
[SourceTitle "playchess.com"]
[Source "ChessBase"]
[SourceQuality "1"]
[TimeControl "40/5400+30:1800+30"]

{[%evp 9,98,-8,-5,-20,0,-18,-10,-29,-31,-29,-8,-4,-7,-12,-9,-4,-1,-18,-6,-46,0,-40,0,-6,0,-15,-3,-33,0,0,0,0,0,0,0,-33,-35,-124,-121,-134,-131,-129,-125,-122,-115,-149,-149,-152,-143,-219,-227,-247,-234,-234,-235,-329,-245,-329,-330,-321,-315,-359,-177,-177,-133,-164,-123,-172,-172,-175,-80,-80,-80,-491,-475,-460,-441,-421,-404,-395,-370,-337,-321,-29962,-29960,-12850,-6520,-6111,-5743,-29979,-29980]} 1. d3 {[%emt 0:00:24]} e5 {[%emt 0:01:51]} 2. g3 {[%emt 0:00:11]} d5 {[%emt 0:00:36][%cal Bd7d5,Bd5d4][%mdl 32]} 3. Bg2 {[%emt 0:00:25]} Nf6 {[%emt 0:00:07]} 4. Nf3 {[%emt 0:02:56]} Nc6 {[%emt 0:01:53]} 5. O-O {[%emt 0:00:45]} Be6 {[%emt 0:00:38]} 6. a3 {[%emt 0:03:47] A07: Réti Opening: New York and Capablanca Systems.} Bd6 {[%emt 0:04:06] [#]} 7. Nc3 $146 {[%emt 0:02:46]} ({Predecessor:} 7. b4 Ne7 8. Bb2 Ng6 9. Nbd2 O-O 10. c4 c6 11. Ng5 Bg4 12. h3 Bd7 13. e4 h6 {½-½ (39) Thiede,L (2450)-Jaracz,P (2547) Germany 2010}) 7... d4 {[%emt 0:06:43]} 8. Ne4 {[%emt 0:01:36] The position is equal.} Nxe4 {[%emt 0:00:18]} 9. dxe4 {[%emt 0:00:07]} f6 {[%emt 0:01:44]} 10. e3 {[%emt 0:00:47]} dxe3 {[%emt 0:04:44]} 11. Bxe3 {[%emt 0:00:09]} O-O {[%emt 0:00:08]} 12. Qe2 {[%emt 0:02:00]} Na5 {[%emt 0:05:25]} 13. b3 {[%emt 0:01:25] Inhibits Bc4.} Qe7 {[%emt 0:02:42]} 14. a4 {[%emt 0:03:53]} c5 {[%emt 0:06:24]} (14... Rad8 $15) 15. Rab1 {[%emt 0:05:03]} Nc6 {[%emt 0:02:44][%cal Oc5c4]} 16. c3 {[%emt 0:02:16]} Rfd8 {[%emt 0:04:02]} (16... Rad8 {seems wilder.} 17. Rfd1 Bg4 18. Qb5 Rd7) 17. Nd2 {[%emt 0:01:52]} Bc7 {[%emt 0:10:32][%cal Bd6c7,Bc7b6,Bb6a5][%mdl 32]} 18. f4 {[%emt 0:01:54]} Qd7 {[%emt 0:07:07]} 19. f5 {[%emt 0:01:39]} Bf7 {[%emt 0:00:17]} 20. Rfc1 {[%emt 0:07:36]} Na5 {[%emt 0:03:29]} 21. Bf1 {[%emt 0:02:30]} Bb6 {[%emt 0:02:13]} 22. Rd1 {[%emt 0:11:21]} Qc7 {[%emt 0:02:32]} 23. Qf2 {[%emt 0:09:56] [#]} (23. Kh1 $15) 23... Nxb3 $1 $17 {[%emt 0:06:21][%mdl 512] Black is more active.} 24. Nc4 {[%emt 0:03:57] aiming for Rxd8+.} Na5 {[%emt 0:04:12]} 25. Rxd8+ {[%emt 0:06:08]} Rxd8 {[%emt 0:01:07]} 26. Nxa5 {[%emt 0:00:33]} Bxa5 {[%emt 0:00:02]} 27. Bxc5 {[%emt 0:00:43]} Qc6 {[%emt 0:01:11]} ({Weaker is} 27... Bxc3 28. Bxa7 Bd4 29. Bxd4 Rxd4 30. Qb2 $15) 28. Qe3 {[%emt 0:08:45]} b6 {[%emt 0:02:36]} 29. Bb4 {[%emt 0:00:42]} (29. Be7 $17 Rc8 30. Bb5 Qxc3 31. Qxc3 Bxc3 32. Kg2) 29... Qxa4 $19 {[%emt 0:00:58]} 30. Qe2 {[%emt 0:02:07]} Bxb4 {[%emt 0:03:27]} 31. cxb4 {[%emt 0:00:34]} h6 {[%emt 0:01:07]} 32. Qe1 {[%emt 0:03:14]} Kh7 {[%emt 0:04:01]} 33. Qc3 {[%emt 0:02:14]} Rd1 {[%emt 0:03:21]} 34. Rxd1 {[%emt 0:02:09]} Qxd1 {[%emt 0:00:01][%mdl 4096] Endgame KQB-KQB} 35. Kf2 {[%emt 0:00:37]} Qd7 {[%emt 0:00:45]} (35... a5 $142 36. bxa5 bxa5) 36. b5 {[%emt 0:01:17]} Qd6 {[%emt 0:00:34] And now ...Qc5+ would win.} 37. Ke1 {[%emt 0:02:11]} g6 {[%emt 0:04:48]} 38. g4 {[%emt 0:01:21]} (38. fxg6+ $17 {was necessary.} Bxg6 39. Bd3) 38... Kg7 {[%emt 0:00:18]} 39. h4 {[%emt 0:00:46]} g5 {[%emt 0:01:21]} (39... Qc5 $19 {has better winning chances.} 40. Qxc5 bxc5) 40. h5 $17 {[%emt 0:00:38]} Qc5 {[%emt 0:01:20]} (40... Qd4 {keeps more tension.} 41. Qc6 Qg1 42. Qb7 Qh1) 41. Qxc5 {[%emt 0:33:39][%mdl 8192] This costs White the game.} (41. Kd2 $17 {was the crucial defense.}) 41... bxc5 {[%emt 0:30:04] KB-KB} 42. Kd2 {[%emt 0:00:29]} Kf8 {[%emt 0:00:05]} 43. Kc3 {[%emt 0:00:19]} Ke7 {[%emt 0:00:07]} 44. Bc4 {[%emt 0:02:38] Intending Bxf7 and mate.} Be8 {[%emt 0:03:54]} 45. Kb3 {[%emt 0:01:41]} Kd6 {[%emt 0:00:00] White must now prevent ...Kc7.} 46. Ka4 $2 {[%emt 0:00:00] [#]} (46. Bd3 $19) 46... a6 $1 {[%emt 0:00:00]} 47. Ka5 {[%emt 0:00:00]} axb5 {[%emt 0:00:00]} 48. Bxb5 {[%emt 0:00:00]} Bc6 {[%emt 0:00:00]} 49. Bxc6 {[%emt 0:00:00]} Kxc6 {[%emt 0:00:00] Weighted Error Value: White=0.59/Black=0.15 (very precise)} 0-1

[Event "Kezmarok Chess Open 2022"]
[Site "Kezmarok"]
[Date "2022.09.29"]
[Round "7.3"]
[White "Manik, Mikulas"]
[Black "Walter, Ema"]
[Result "1-0"]
[ECO "C60"]
[WhiteElo "2362"]
[BlackElo "2062"]
[Annotator "TA"]
[PlyCount "83"]
[EventDate "2022.09.24"]
[EventType "swiss"]
[EventCountry "SVK"]
[SourceTitle "playchess.com"]
[Source "ChessBase"]
[SourceQuality "1"]
[TimeControl "40/5400+30:1800+30"]

{[%evp 15,83,26,39,30,56,54,63,49,56,40,43,47,48,47,45,45,44,41,55,52,55,34,36,41,60,35,50,10,15,8,12,6,20,20,20,16,8,0,25,26,29,21,74,66,113,106,188,181,333,309,425,418,469,457,546,544,500,537,516,494,562,537,1150,1112,910,622,1488,1404,985,792]} 1. e4 {[%emt 0:00:03]} e5 {[%emt 0:00:15]} 2. Nf3 {[%emt 0:00:03]} Nc6 {[%emt 0:00:03]} 3. Bb5 {[%emt 0:00:07]} Nge7 {[%emt 0:00:04]} 4. Nc3 {[%emt 0:00:03]} Ng6 {[%emt 0:00:13]} 5. d4 {[%emt 0:00:06]} exd4 {[%emt 0:00:19]} 6. Nxd4 {[%emt 0:00:03]} Bc5 {[%emt 0:00:07]} 7. Be3 {[%emt 0:00:13]} Bb6 {[%emt 0:00:44] now supersedes 7...Bxd4.} 8. O-O {[%emt 0:02:14]} O-O {[%emt 0:00:19]} 9. Qd2 {[%emt 0:07:28] [#] C60: Ruy Lopez: Unusual Black 3rd moves and 3...g6.} Nce7 $146 {[%emt 0:04:52]} ({Predecessor:} 9... Nxd4 10. Bxd4 Bxd4 11. Qxd4 c6 12. Be2 Qb6 13. Qxb6 axb6 14. Rad1 b5 15. a3 Rd8 {½-½ (64) Caruana,F (2781)-Sadhwani,R (2616) Chess.com INT 2022}) 10. Rad1 {[%emt 0:11:33]} d6 {[%emt 0:09:08]} 11. Rfe1 {[%emt 0:02:42] White is more active. White is slightly better.} Kh8 {[%emt 0:05:07]} 12. a4 {[%emt 0:06:56]} Bd7 {[%emt 0:10:19]} 13. f3 {[%emt 0:15:24]} f5 {[%emt 0:11:32]} 14. Bxd7 {[%emt 0:15:18]} (14. Nxf5 {looks sharper.} Nxf5 15. Bxb6 axb6 16. Bxd7 Qxd7 17. exf5 Qxf5 18. Kh1) 14... Qxd7 {[%emt 0:00:11]} 15. Nxf5 {[%emt 0:01:05]} (15. exf5 {seems wilder.} Nxf5 16. Nxf5 Qxf5 17. Bxb6 axb6 18. Kh1) 15... Nxf5 {[%emt 0:00:44]} 16. Bxb6 {[%emt 0:01:56]} axb6 {[%emt 0:00:27]} 17. exf5 {[%emt 0:00:09]} Qxf5 {[%emt 0:01:37]} 18. Qd3 {[%emt 0:02:04]} Qc5+ {[%emt 0:05:52]} 19. Qd4 {[%emt 0:00:55]} Qc6 {[%emt 0:21:22]} 20. Qd5 {[%emt 0:03:46]} Rae8 {[%emt 0:03:50]} 21. Qxc6 {[%emt 0:00:56]} bxc6 {[%emt 0:00:02]} 22. b4 {[%emt 0:00:21]} Kg8 {[%emt 0:04:26]} 23. b5 {[%emt 0:02:28]} Re5 {[%emt 0:05:34]} 24. Rxe5 {[%emt 0:03:14]} Nxe5 {[%emt 0:00:25]} 25. bxc6 {[%emt 0:00:37]} Nxc6 $11 {[%emt 0:00:44][%mdl 4096] Endgame KRN-KRN} 26. Nb5 {[%emt 0:04:05]} Rc8 {[%emt 0:07:39]} 27. Rd3 {[%emt 0:00:08]} Nb4 {[%emt 0:03:19][%csl LRc2,LRd3]} 28. Rc3 {[%emt 0:00:09]} Nd5 {[%emt 0:00:05]} (28... c5 $11 {keeps the balance.}) 29. Rc6 $16 {[%emt 0:00:24]} Kf8 {[%emt 0:02:56]} (29... Ra8 $14) 30. c4 {[%emt 0:01:53]} Ne7 {[%emt 0:02:01]} (30... Nf4 $16) 31. Rxc7 $18 {[%emt 0:00:07]} Rxc7 $2 {[%emt 0:00:57] [#]} (31... Ra8 {was necessary.} 32. Nxd6 Rxa4) 32. Nxc7 {[%emt 0:00:06] KN-KN} Kf7 {[%emt 0:00:41]} 33. Kf2 {[%emt 0:00:37]} Kf6 {[%emt 0:00:27]} 34. Ke3 {[%emt 0:00:44] White is clearly winning.} Ke5 {[%emt 0:00:34]} 35. f4+ {[%emt 0:01:27]} Kf5 {[%emt 0:00:02]} 36. Kf3 {[%emt 0:00:46]} h5 {[%emt 0:00:52]} 37. Nd5 {[%emt 0:03:48]} Nc8 {[%emt 0:00:10]} 38. g3 {[%emt 0:02:14]} g6 {[%emt 0:00:20]} 39. h3 {[%emt 0:00:51]} Ke6 {[%emt 0:01:06]} 40. Ke4 {[%emt 0:00:09]} Kd7 {[%emt 0:00:33]} 41. f5 {[%emt 0:32:19]} g5 {[%emt 0:00:31]} 42. Nf6+ {[%emt 0:00:00] Weighted Error Value: White=0.05 (flawless) /Black=0.34} 1-0

[Event "Kezmarok Chess Open 2022"]
[Site "Kezmarok"]
[Date "2022.09.29"]
[Round "7.4"]
[White "Jablonicky, Martin"]
[Black "Wisniewski, Michal"]
[Result "1/2-1/2"]
[ECO "A05"]
[WhiteElo "2344"]
[BlackElo "2152"]
[Annotator "TA"]
[PlyCount "40"]
[EventDate "2022.09.24"]
[EventType "swiss"]
[EventCountry "SVK"]
[SourceTitle "playchess.com"]
[Source "ChessBase"]
[SourceQuality "1"]
[TimeControl "40/5400+30:1800+30"]

{[%evp 10,40,15,16,11,0,0,0,12,-6,-16,-35,-35,-33,-19,-19,-7,-16,0,-15,-12,-14,-3,-22,-16,-18,0,0,0,0,0,-19,-6]} 1. Nf3 {[%emt 0:00:04]} Nf6 {[%emt 0:01:32]} 2. g3 {[%emt 0:00:33]} b5 {[%emt 0:00:43]} 3. Bg2 {[%emt 0:00:39]} Bb7 {[%emt 0:00:06]} 4. O-O {[%emt 0:00:04]} e6 {[%emt 0:00:47]} 5. d4 {[%emt 0:00:04]} Be7 {[%emt 0:00:23]} 6. Bg5 {[%emt 0:00:30]} d5 {[%emt 0:00:08] A46: 1 d4 Nf6 2 Nf3 e6: Torre, London and Colle Systems.} 7. Nbd2 {[%emt 0:00:10]} Nbd7 {[%emt 0:00:05]} 8. c3 {[%emt 0:00:27][%cal Bc2c3,Bc3d4,Bd4e5][%mdl 32]} c5 {[%emt 0:01:32] 8...c5 has lost popularity.} 9. Re1 {[%emt 0:00:25]} O-O {[%emt 0:00:26]} 10. Bxf6 {[%emt 0:01:01]} Nxf6 {[%emt 0:00:14]} 11. Ne5 {[%emt 0:00:12] [#]} cxd4 $146 {[%emt 0:00:30]} ({Predecessor:} 11... Qc7 12. Rc1 Rac8 13. e3 Ne4 14. f3 Nd6 15. Nd3 Nc4 16. Nb3 cxd4 17. exd4 Bd6 {½-½ (44) Dornbusch,T (2249)-Tsolakidou,S (2389) Iasi 2021}) 12. cxd4 {[%emt 0:00:06] The position is equal.} Qb6 {[%emt 0:00:02]} 13. e3 {[%emt 0:00:25]} Rfc8 {[%emt 0:00:30]} 14. Qb3 {[%emt 0:01:49]} Bd6 {[%emt 0:00:55]} 15. Bf1 {[%emt 0:00:24]} b4 {[%emt 0:00:40]} 16. Qa4 {[%emt 0:04:36]} Bxe5 {[%emt 0:01:14]} 17. dxe5 {[%emt 0:00:07]} Bc6 {[%emt 0:00:02]} 18. Qa6 {[%emt 0:01:47]} Nd7 {[%emt 0:00:06]} 19. Nf3 {[%emt 0:00:07]} Bb7 {[%emt 0:00:01]} 20. Qxb6 {[%emt 0:01:45]} axb6 {[%emt 0:00:12] Weighted Error Value: White=0.08 (flawless) /Black=0.05 (flawless)} 1/2-1/2

[Event "Kezmarok Chess Open 2022"]
[Site "Kezmarok"]
[Date "2022.09.29"]
[Round "7.5"]
[White "Hagarova, Zuzana"]
[Black "Janik, Marek Tobias"]
[Result "1-0"]
[ECO "B30"]
[WhiteElo "2287"]
[BlackElo "1823"]
[Annotator "TA"]
[PlyCount "77"]
[EventDate "2022.09.24"]
[EventType "swiss"]
[EventCountry "SVK"]
[SourceTitle "playchess.com"]
[Source "ChessBase"]
[SourceQuality "1"]
[TimeControl "40/5400+30:1800+30"]

{[%evp 12,77,30,29,35,-2,14,3,12,14,9,10,22,-58,0,0,0,-19,-20,-20,-4,-16,11,0,10,14,49,54,56,56,56,57,69,67,78,78,81,73,84,41,43,42,41,43,74,79,95,67,45,53,74,67,67,69,75,81,141,127,131,137,137,137,232,221,1135,1120,1063,1038]} 1. e4 c5 2. Nf3 {[%cal Bg1f3,Bf3d2,Bd2f1,Bf1g3][%mdl 32]} Nc6 3. Nc3 e5 4. Bc4 Be7 5. d3 d6 6. Nd2 Nf6 7. Nf1 O-O {[#] B30: Sicilian: 2...Nc6 3 Bb5, lines without ...g6.} 8. Ng3 $146 ({Predecessor:} 8. Ne3 Nd7 9. O-O Nb6 10. Ned5 Nxc4 11. dxc4 Bg5 12. Qd3 Be6 13. a4 Kh8 14. b3 Nd4 15. Bxg5 Qxg5 16. f4 exf4 17. Nxf4 {1-0 (43) Abasov,N (2634)-Perunovic,M (2541) Terme Catez 2021}) 8... Nd4 9. O-O Be6 {The position is equal.} 10. a4 d5 11. exd5 Nxd5 12. Re1 ({White should play} 12. Nxd5 $11 Bxd5 13. c3) 12... Nc6 (12... Nb4 $1 $15 13. Bxe6 fxe6) 13. Nxd5 $11 Bxd5 14. Bxd5 Qxd5 15. Nf5 Bf6 16. Qg4 {[%cal Of5g7] [#] And now Nxg7! would win.} Kh8 17. Bg5 {White wants to mate with Bxf6.} Qe6 18. f4 Nd4 19. Bxf6 Qxf6 20. Nxd4 ({Don't play} 20. Rxe5 Nxc2 21. Rd1 g6 $11) 20... exd4 21. Re5 Rac8 22. Rae1 {[%cal Og4c8] [#] aiming for Qxc8!} h6 23. b3 Qc6 24. h3 Rce8 25. Qe2 {[%cal Re5e8]} Rxe5 26. Qxe5 $14 {[%mdl 4096] Endgame KQR-KQR} Kg8 27. Qe7 Rc8 28. f5 f6 29. Re4 {Hoping for Rg4.} Rc7 30. Qd8+ Kf7 $1 31. Qh8 {Threatens to win with Rg4. White is much more active.} Rc8 $1 32. Qh7 Qd6 $1 33. Rg4 {Against Qg3} Rg8 (33... Qf8 $142) 34. Qg6+ $16 Kf8 35. Re4 {[%csl Ge4][%cal Rg6e8]} Qd7 {Prevents Qe8+.} 36. Re6 $40 {[%mdl 128] Black is in trouble.} Qf7 (36... Rh8 $16 37. Qg4 Qd8) 37. Qg3 $18 {Intending Qb8+ and mate.} g6 $2 (37... Qd7 38. b4 cxb4) 38. Qd6+ Kg7 39. Re7 {Weighted Error Value: White=0.10 (very precise) /Black=0.15 (very precise)} 1-0

[Event "Kezmarok Chess Open 2022"]
[Site "Kezmarok"]
[Date "2022.09.29"]
[Round "7.6"]
[White "Striskova, Lucia"]
[Black "Kovac, Lubomir"]
[Result "1/2-1/2"]
[ECO "B19"]
[WhiteElo "1866"]
[BlackElo "2091"]
[Annotator "TA"]
[PlyCount "65"]
[EventDate "2022.09.24"]
[EventType "swiss"]
[EventCountry "SVK"]
[SourceTitle "playchess.com"]
[Source "ChessBase"]
[SourceQuality "1"]
[TimeControl "40/5400+30:1800+30"]

{[%evp 28,65,37,39,36,35,40,45,43,41,49,42,40,55,44,39,36,29,36,31,40,24,32,21,24,0,0,0,0,0,0,0,360,0,0,0,0,0,0,0]} 1. e4 c6 2. d4 d5 3. Nc3 dxe4 4. Nxe4 Bf5 5. Ng3 Bg6 6. h4 h6 7. Nf3 Nd7 8. h5 Bh7 9. Bd3 Bxd3 10. Qxd3 Qc7 11. Bd2 e6 12. O-O-O Ngf6 13. Ne4 O-O-O 14. Kb1 Nxe4 15. Qxe4 Nf6 {B19: Classical Caro-Kann: 4...Bf5 main line.} 16. Qe2 c5 17. dxc5 Bxc5 {White is slightly better.} 18. Rh4 {[#] Threatens to win with b4.} Kb8 {[%cal Oe6e5]} 19. Bf4 Bd6 20. Bxd6 Rxd6 21. Rxd6 Qxd6 22. Rd4 Qc7 {[#]} 23. Ne5 $146 ({Predecessor:} 23. Rc4 Qd6 {½-½ (24) Othmer,M-Broschwitz,M (2161) Germany 2003}) 23... Rc8 24. Rc4 Qe7 25. Rxc8+ Kxc8 $14 {[%mdl 4096] Endgame KQN-KQN} 26. c4 Nd7 27. g4 Nxe5 28. Qxe5 $11 {KQ-KQ} f6 29. Qd4 Qd7 $2 {[%mdl 8192] [#]} (29... Qb4 $11) 30. Qc5+ $2 (30. Qxd7+ $1 $18 Kxd7 31. Kc2) 30... Kb8 {[%cal Rd7d1] The position is equal.} 31. Qf8+ Kc7 {[%cal Rd7d1]} 32. Qc5+ Kb8 {[%cal Rd7d1]} 33. Qf8+ {Weighted Error Value: White=0.29 (precise) /Black=0.48} 1/2-1/2